bitfinex-derivatives/quotes_SOLF0:USTF0_20250820
["timestamp","ask_amount","ask_price","bid_price","bid_amount"]
[1755692878700,2.99088792,180.72,180.67,5.5346]
[1755692878994,2.99088792,180.72,180.66,4.54638988]
[1755692879198,5.534,180.7,180.67,3.0]
[1755692879391,2.95,180.71,180.67,3.0]
[1755692879997,5.5338,180.7,180.67,3.0]
[1755692880297,2.95,180.71,180.67,3.0]
[1755692880498,0.04088792,180.72,180.66,4.54638988]
[1755692880695,0.04088792,180.72,180.68,3.0]
[1755692880996,0.04088792,180.72,180.67,4.54638988]
[1755692880997,5.5339,180.7,180.67,3.0]
[1755692881199,5.5339,180.7,180.68,3.0]
[1755692881995,2.99088792,180.72,180.66,4.54638988]
[1755692881996,5.5336,180.71,180.69,3.0]
[1755692882193,5.5336,180.71,180.66,4.54638988]
[1755692882194,0.04088792,180.72,180.68,5.5342]
[1755692882400,2.95,180.71,180.68,3.0]
[1755692882596,5.534,180.7,180.66,4.54638988]
[1755692882801,5.534,180.7,180.67,3.0]
[1755692883000,5.534,180.7,180.68,3.0]
[1755692883201,5.5336,180.71,180.68,3.0]
[1755692884200,5.5339,180.7,180.68,3.0]
[1755692884505,5.5339,180.7,180.65,4.54638988]
[1755692884506,5.5339,180.7,180.66,5.5348]
[1755692884802,5.5339,180.7,180.67,3.0]
[1755692885607,2.95,180.71,180.65,4.54638988]
[1755692885795,2.95,180.71,180.64,3.0]
[1755692886202,8.4846,180.68,180.64,8.5355]
[1755692886504,8.4846,180.68,180.65,3.0]
[1755692886807,5.5346,180.68,180.66,3.0]
[1755692887102,5.57198372,180.68,180.66,3.0]
[1755692887806,0.03738372,180.68,180.66,8.5349]
[1755692888302,5.57178372,180.68,180.66,3.0]
[1755692888499,0.03738372,180.68,180.65,3.0]
[1755692889404,0.03738372,180.68,180.65,8.5351]
[1755692890506,5.57198372,180.68,180.65,8.5351]
[1755692892011,2.95,180.67,180.61,4.54638988]
[1755692892207,2.95,180.67,180.6,7.54638988]
[1755692892402,2.95,180.67,180.61,4.54638988]
[1755692893107,2.95,180.67,180.61,5.5364]
[1755692893501,5.5355,180.65,180.62,5.5362]
[1755692893703,5.5355,180.65,180.62,8.5362]
[1755692893900,2.95,180.66,180.6,4.54638988]
[1755692894200,5.5355,180.65,180.61,5.5363]
[1755692894400,5.5355,180.65,180.62,3.0]
[1755692894600,2.44615079,180.72,180.62,3.0]
[1755692894801,0.03829417,180.65,180.62,3.0]
[1755692894996,2.95,180.66,180.62,3.0]
[1755692895403,0.03507056,180.65,180.64,3.0]
[1755692895810,2.95,180.7,180.64,3.0]
[1755692896014,2.95,180.7,180.64,7.54638988]
[1755692896202,0.03589974,180.66,180.64,6.99254067]
[1755692896508,0.03589974,180.66,180.65,3.0]
[1755692896806,0.03589974,180.66,180.65,8.5353]
[1755692898903,0.03589974,180.66,180.65,13.08168988]
[1755692899809,2.95,180.73,180.67,5.5346]
[1755692900505,5.5337,180.71,180.67,5.5346]
[1755692900705,8.4837,180.71,180.67,8.5346]
[1755692900908,2.95,180.71,180.67,8.5346]
[1755692902310,2.95,180.71,180.67,8.57162488]
[1755692902506,5.5338,180.7,180.67,8.57162488]
[1755692902713,2.95,180.71,180.67,8.57162488]
[1755692903212,5.5339,180.7,180.67,3.03702488]
[1755692903508,5.5339,180.7,180.68,3.0]
[1755692903715,28.30142015,180.84,180.68,7.55566978]
[1755692903716,2.95,180.76,180.68,7.55566978]
[1755692904305,5.5323,180.75,180.71,5.5333]
[1755692904604,2.95,180.75,180.69,4.55566978]
[1755692904806,2.95,180.75,180.69,7.55566978]
[1755692905110,2.95,180.75,180.69,3.0]
[1755692905507,2.95,180.75,180.67,4.55566978]
[1755692905711,2.95,180.75,180.7,0.037285]
[1755692907409,2.9,180.76,180.7,0.037285]
[1755692910907,2.9,180.74,180.7,0.037285]
[1755692911414,2.9,180.74,180.64,3.1]
[1755692911415,2.9,180.74,180.64,8.6356]
[1755692911811,2.9,180.74,180.64,3.1]
[1755692912012,2.9,180.74,180.67,0.03557455]
[1755692912719,5.5344,180.68,180.67,0.03557455]
[1755692912915,8.4344,180.68,180.67,0.03557455]
[1755692922323,8.4344,180.68,180.67,7.455e-05]
[1755692922818,2.9,180.64,180.58,127.98733498]
[1755692923020,13.55362879,180.69,180.59,3.1]
[1755692923021,2.9,180.63,180.59,3.1]
[1755692923523,5.5375,180.58,180.56,3.1]
[1755692923821,5.5375,180.58,180.57,3.1]
[1755692928623,0.0362082,180.59,180.51,3.1]
[1755692929128,0.0362082,180.59,180.52,5.5391]
[1755692929329,0.0362082,180.59,180.53,3.1]
[1755692930427,2.9,180.58,180.48,3.1]
[1755692931028,2.9,180.58,180.48,8.6403]
[1755692931230,0.03587179,180.55,180.48,8.6403]
[1755692931429,2.93587179,180.55,180.48,8.6403]
[1755692932524,2.93587179,180.55,180.48,3.1]
[1755692933526,5.539,180.53,180.51,3.1]
[1755692933728,2.93587179,180.55,180.51,3.1]
[1755692935234,5.5387,180.54,180.51,3.1]
[1755692935632,2.93587179,180.55,180.51,3.1]
[1755692935834,5.5389,180.54,180.51,3.1]
[1755692936433,5.539,180.53,180.51,3.1]
[1755692936634,0.03587179,180.55,180.51,3.1]
[1755692936830,3.09,180.54,180.48,3.04]
[1755692937134,5.5395,180.52,180.49,3.04]
[1755692937331,5.5395,180.52,180.5,3.04]
[1755692937531,5.539,180.53,180.49,5.5402]
[1755692937927,5.539,180.53,180.51,3.04]
[1755692938328,5.57730696,180.53,180.51,3.04]
[1755692938633,5.5393,180.52,180.51,3.04]
[1755692938929,5.5393,180.52,180.48,5.5404]
[1755692939133,5.5396,180.51,180.49,3.04]
[1755692939534,5.5398,180.51,180.49,3.04]
[1755692940234,0.03830696,180.53,180.49,3.04]
[1755692940431,0.03830696,180.53,180.46,3.04]
[1755692940626,3.12830696,180.53,180.5,3.04]
[1755692940834,5.5396,180.51,180.48,3.04]
[1755692941033,5.5396,180.51,180.49,3.04]
[1755692941433,5.5396,180.51,180.5,3.04]
[1755692942035,5.5394,180.52,180.5,3.04]
[1755692943138,5.5396,180.51,180.5,3.04]
[1755692943331,0.03830696,180.53,180.5,3.04]
[1755692943532,3.12830696,180.53,180.5,3.04]
[1755692944137,5.5396,180.51,180.5,3.04]
[1755692944738,3.12830696,180.53,180.46,8.5811]
[1755692945233,3.12830696,180.53,180.42,3.04]
[1755692945738,3.09,180.53,180.42,3.04]
[1755692946135,0.03668848,180.49,180.42,3.04]
[1755692947140,0.03668848,180.49,180.48,3.04]
[1755692948140,0.03668848,180.49,180.48,8.5805]
[1755692949437,0.03668848,180.49,180.48,3.04]
[1755692950436,0.03668848,180.49,180.47,3.04]
[1755692951639,0.03668848,180.49,180.47,8.5808]
[1755692951844,0.03668848,180.49,180.47,3.04]
[1755692952246,3.12668848,180.49,180.43,3.04]
[1755692952836,5.541,180.47,180.44,5.5415]
[1755692953037,5.541,180.47,180.45,3.04]
[1755692955045,5.541,180.47,180.45,8.5814]
[1755692955247,5.5406,180.48,180.46,3.04]
[1755692956041,5.5406,180.48,180.46,8.5811]
[1755692956740,0.03668848,180.49,180.47,5.5408]
[1755692956943,0.03668848,180.49,180.48,3.04]
[1755692957444,0.03668848,180.49,180.47,5.5408]
[1755692957640,0.03668848,180.49,180.47,3.04]
[1755692958138,5.57688848,180.49,180.47,3.04]
[1755692958549,5.57688848,180.49,180.47,8.5808]
[1755692959850,0.03668848,180.49,180.47,8.5808]
[1755692960146,0.03668848,180.49,180.47,3.04]
[1755692960540,5.57688848,180.49,180.47,3.04]
[1755692961648,0.03668848,180.49,180.47,8.5807]
[1755692962440,5.57688848,180.49,180.47,3.04]
[1755692962847,0.03668848,180.49,180.47,3.04]
[1755692963045,0.03668848,180.49,180.46,2.44615079]
[1755692963249,0.03668848,180.49,180.47,3.04]
[1755692963446,0.03668848,180.49,180.47,5.5408]
[1755692963647,0.03668848,180.49,180.48,3.04]
[1755692964750,3.09,180.56,180.48,3.04]
[1755692965144,5.5382,180.56,180.52,5.539]
[1755692965344,5.5382,180.56,180.54,3.04]
[1755692965644,2.93,180.58,180.54,3.04]
[1755692965844,2.93,180.57,180.54,3.04]
[1755692966045,2.93,180.56,180.53,0.03779524]
[1755692966349,2.93,180.62,180.53,0.03779524]
[1755692966545,2.93,180.62,180.52,8.5391]
[1755692966848,2.93,180.62,180.56,0.03520294]
[1755692967449,2.93,180.62,180.56,3.03520294]
[1755692967846,8.4664,180.62,180.58,5.5372]
[1755692968146,138.96,180.65,180.57,3.0]
[1755692968147,141.89,180.65,180.57,3.0]
[1755692968342,5.5362,180.62,180.58,5.5372]
[1755692968548,5.5362,180.62,180.59,3.0]
[1755692968747,5.5362,180.62,180.6,3.0]
[1755692970752,2.93,180.67,180.59,0.03687905]
[1755692974752,2.93,180.67,180.6,3.0]
[1755692976954,5.5364,180.62,180.6,3.0]
[1755692977253,2.93,180.67,180.61,3.0]
[1755692977459,5.5358,180.64,180.61,3.0]
[1755692977658,2.93,180.67,180.6,3.0]
[1755692979062,2.93,180.65,180.61,3.0]
[1755692979562,5.5358,180.64,180.61,3.0]
[1755692979961,2.93,180.64,180.61,3.0363385]
[1755692980162,5.5362,180.62,180.61,0.0363385]
[1755692980459,372.24,180.74,180.61,5.5728385]
[1755692980460,2.93,180.73,180.61,5.5728385]
[1755692980761,5.5356,180.65,180.62,3.0]
[1755692981355,5.5356,180.65,180.63,3.0]
[1755692983262,5.5356,180.65,180.64,3.0]
[1755692983459,2.93,180.72,180.65,3.0]
[1755692984063,5.5346,180.68,180.65,3.0]
[1755692984666,5.5347,180.67,180.65,3.03714337]
[1755692985367,5.5347,180.67,180.65,0.03714337]
[1755692986461,5.5347,180.67,180.65,3.03714337]
[1755692986668,2.93,180.7,180.67,3.0]
[1755692987364,5.5344,180.68,180.65,5.57234337]
[1755692987566,5.5344,180.68,180.66,3.0]
[1755692988469,5.5342,180.69,180.66,3.0]
[1755692988669,375.17,180.74,180.66,3.0]
[1755692988870,2.93,180.74,180.66,3.0]
[1755692989263,87.49314792,180.77,180.7,8.5335]
[1755692989474,87.49314792,180.77,180.7,3.0]
[1755692989665,2.93,180.77,180.71,5.5333]
[1755692990062,2.93,180.77,180.72,0.04223097]
[1755692990270,2.93,180.76,180.72,3.04223097]
[1755692991775,138.82,180.78,180.72,0.04223097]
[1755692991970,141.75,180.78,180.72,0.04223097]
[1755692992378,2.93,180.78,180.72,0.04223097]
[1755692992885,2.93,180.78,180.72,5.57523097]
[1755692993077,2.93,180.78,180.72,0.04223097]
[1755692993275,2.93,180.87,180.75,3.0]
[1755692994676,2.93,180.87,180.77,5.5315]
[1755692995072,2.93,180.87,180.75,3.0]
[1755692995278,2.93,180.87,180.76,5.5318]
[1755692995582,2.93,180.87,180.75,3.0]
[1755692995884,3.14,180.84,180.75,8.532]
[1755692996284,3.14,180.84,180.75,3.0]
[1755692997189,5.5315,180.78,180.76,2.89]
[1755692997380,5.5315,180.78,180.77,2.89]
[1755692998884,5.5311,180.79,180.77,2.89]
[1755693000283,3.14,180.82,180.74,2.89]
[1755693000580,3.14,180.86,180.74,5.33615079]
[1755693000777,3.14,180.86,180.78,2.89]
[1755693000978,3.14,180.89,180.78,2.89]
[1755693001175,141.86,180.93,180.81,2.89]
[1755693001582,3.14,180.93,180.81,2.89]
[1755693001780,3.14,180.94,180.84,2.89]
[1755693002180,3.14,180.94,180.86,5.5286]
[1755693002378,2.44615079,180.93,180.79,2.44615079]
[1755693002582,3.14,180.92,180.82,5.53]
[1755693002884,3.14,180.92,180.8,2.89]
[1755693003289,3.14,180.92,180.81,5.5302]
[1755693003489,5.5292,180.85,180.81,2.89]
[1755693003690,5.5292,180.85,180.82,2.89]
[1755693003886,5.529,180.86,180.79,2.44615079]
[1755693004081,3.14,180.88,180.79,2.44615079]
[1755693004283,3.14,180.88,180.83,2.89]
[1755693004585,3.14,180.87,180.83,2.89]
[1755693005089,5.5297,180.84,180.79,5.5309]
[1755693005388,5.5297,180.84,180.82,2.89]
[1755693005978,8.6699,180.83,180.78,5.5312]
[1755693006180,8.6699,180.83,180.78,8.4212]
[1755693006381,8.6699,180.83,180.79,2.89]
[1755693006687,5.5299,180.83,180.8,2.89]
[1755693006889,3.14,180.86,180.76,2.89]
[1755693007390,5.5307,180.81,180.76,8.4219]
[1755693007595,2.44615079,180.84,180.76,2.89]
[1755693007794,3.14,180.83,180.76,2.89]
[1755693007992,5.5314,180.78,180.76,2.89]
[1755693008399,3.14,180.83,180.76,2.89]
[1755693008688,5.5313,180.78,180.76,2.89]
[1755693008894,3.14,180.83,180.72,2.89]
[1755693009191,3.14,180.83,180.71,2.44615079]
[1755693009192,5.5317,180.77,180.74,2.89]
[1755693009392,3.14,180.79,180.72,2.89]
[1755693009795,3.14,180.79,180.69,2.89]
[1755693010094,2.44615079,180.78,180.7,2.89]
[1755693010289,3.14,180.77,180.7,2.89]
[1755693010796,3.14,180.77,180.69,5.5341]
[1755693011393,3.14,180.77,180.7,2.89]
[1755693011688,3.14,180.77,180.67,2.89]
[1755693011886,5.5336,180.71,180.67,8.4244]
[1755693012094,3.14,180.77,180.66,2.89]
[1755693012494,3.14,180.78,180.66,2.89]
[1755693013289,5.534,180.7,180.67,2.89]
[1755693013587,5.534,180.7,180.64,138.8]
[1755693013787,5.534,180.7,180.6,3.81154711]
[1755693013788,5.534,180.7,180.68,2.89]
[1755693014488,5.5335,180.71,180.68,2.89]
[1755693014693,3.14,180.72,180.68,2.89]
[1755693015093,5.5335,180.71,180.68,2.89]
[1755693015286,3.14,180.72,180.68,2.89]
[1755693015692,3.14,180.79,180.61,2.89]
[1755693015895,3.14,180.79,180.7,5.5336]
[1755693016091,3.14,180.79,180.7,2.89]
[1755693016491,3.14,180.79,180.72,2.89]
[1755693016889,5.5317,180.77,180.72,8.4229]
[1755693017090,371.7,180.82,180.68,3.81154711]
[1755693017290,371.7,180.82,180.69,2.89]
[1755693017491,5.5302,180.82,180.76,2.89]
[1755693017691,3.14,180.83,180.76,2.89]
[1755693018099,3.14,180.86,180.78,2.89]
[1755693018295,138.68,180.88,180.78,2.89]
[1755693019096,138.68,180.88,180.8,5.5305]
[1755693019992,138.68,180.88,180.81,5.5304]
[1755693020500,138.68,180.88,180.81,8.4204]
[1755693021000,138.68,180.88,180.83,5.5297]
[1755693021197,138.68,180.88,180.85,2.89]
[1755693021401,3.14,180.89,180.85,2.89]
[1755693022504,374.88,180.92,180.84,8.4192]
[1755693022896,3.14,180.97,180.84,2.89]
[1755693023293,3.14,180.97,180.88,5.5282]
[1755693023497,3.14,180.97,180.88,2.89]
[1755693024494,3.14,180.97,180.91,0.03925213]
[1755693024898,138.66,180.98,180.91,2.92925213]
[1755693025804,2.97,180.97,180.91,2.92925213]
[1755693026307,2.97,180.97,180.91,0.03925213]
[1755693026999,138.66,180.98,180.91,0.03925213]
[1755693027198,141.63,180.98,180.91,0.03925213]
[1755693028395,141.63,180.98,180.92,3.07]
[1755693028702,2.97,180.98,180.92,3.07]
[1755693028908,5.526,180.96,180.91,0.03925213]
[1755693029205,5.526,180.96,180.93,3.07]
[1755693029806,374.67,181.02,180.92,3.07]
[1755693030197,374.67,181.02,180.93,5.5266]
[1755693030795,5.5259,180.96,180.92,3.07]
[1755693031001,5.5259,180.96,180.85,3.07]
[1755693031503,2.97,180.99,180.91,3.07]
[1755693031903,5.526,180.96,180.9,5.5274]
[1755693032208,5.526,180.96,180.92,3.07]
[1755693032707,5.526,180.96,180.93,3.07]
[1755693033705,5.5261,180.95,180.91,3.07]
[1755693034010,2.97,180.99,180.92,3.07]
[1755693034402,2.97,180.99,180.93,3.07]
[1755693035508,2.97,180.97,180.9,3.07]
[1755693036307,371.7,181.02,180.85,3.81154711]
[1755693036610,371.7,181.02,180.86,3.07]
[1755693036810,5.5247,181.0,180.88,120.54932936]
[1755693037009,138.6,181.03,180.89,6.88154711]
[1755693037206,138.6,181.03,180.9,3.07]
[1755693037399,8.4947,181.0,180.95,8.5961]
[1755693037608,138.6,181.03,180.95,5.5261]
[1755693037914,138.6,181.03,180.95,3.07]
[1755693038106,5.5244,181.01,180.95,3.07]
[1755693038306,138.6,181.03,180.95,3.07]
[1755693038703,5.5246,181.0,180.96,3.07]
[1755693039414,5.5243,181.01,180.96,5.5258]
[1755693039613,5.5243,181.01,180.97,3.07]
[1755693039913,5.5241,181.02,180.97,3.07]
[1755693040113,138.6,181.03,180.89,65.81154711]
[1755693040307,2.97,181.04,180.93,2.44200889]
[1755693040614,2.97,181.04,180.94,3.07]
[1755693041010,2.97,181.04,180.97,3.07]
[1755693041711,2.97,181.04,180.97,8.5955]
[1755693042215,2.97,181.04,180.97,3.07]
[1755693044112,2.97,181.04,180.96,5.5256]
[1755693044113,2.97,181.03,180.93,3.07]
[1755693044420,2.97,181.03,180.95,5.5259]
[1755693045818,2.97,181.03,180.96,3.07]
[1755693046420,2.97,181.03,180.92,3.07]
[1755693046615,138.52,181.08,180.92,3.07]
[1755693046616,2.97,181.0,180.92,3.07]
[1755693046816,2.97,181.0,180.93,5.5267]
[1755693047018,2.44200889,181.01,180.92,3.07]
[1755693047411,2.97,181.03,180.92,3.07]
[1755693047719,2.97,181.03,180.94,3.07]
[1755693048322,2.97,181.03,180.98,5.525]
[1755693048524,2.97,181.03,180.99,3.07]
[1755693048914,5.5239,181.03,180.98,5.525]
[1755693049122,2.97,181.07,180.99,3.07]
[1755693049921,2.97,181.07,181.01,0.03506124]
[1755693054924,2.97,181.07,181.01,5.55926124]
[1755693055127,2.97,181.07,181.01,0.03506124]
[1755693055325,2.97,181.1,181.03,3.07]
[1755693055526,2.97,181.1,181.05,5.523]
[1755693055730,2.97,181.1,181.03,3.07]
[1755693056535,2.92,181.22,181.03,3.07]
[1755693056731,2.92,181.2,181.03,3.07]
[1755693057132,5.5207,181.13,181.09,2.99]
[1755693057332,8.4407,181.13,181.09,2.99]
[1755693058136,2.92,181.13,181.09,2.99]
[1755693058335,2.92,181.13,181.09,3.03062354]
[1755693058540,2.92,181.13,181.09,8.55222354]
[1755693058835,5.5201,181.15,181.1,2.99]
[1755693059036,5.5201,181.15,181.09,0.04062354]
[1755693059037,8.4401,181.15,181.09,0.04062354]
[1755693059341,2.92,181.15,181.11,2.99]
[1755693059539,8.4401,181.15,181.11,2.99]
[1755693059741,2.92,181.19,181.12,2.99]
[1755693060039,2.92,181.19,181.03,2.99]
[1755693061233,2.92,181.19,181.06,3.79751737]
[1755693061436,2.92,181.19,181.07,2.99]
[1755693061735,2.92,181.19,181.13,2.99]
[1755693062334,2.92,181.19,181.1,2.99]
[1755693063440,2.92,181.19,181.06,2.99]
[1755693064341,2.92,181.18,181.06,2.99]
[1755693064645,2.92,181.18,181.03,2.99]
[1755693064934,2.92,181.14,181.03,2.99]
[1755693065741,2.92,181.14,180.98,2.99]
[1755693066737,2.92,181.14,181.0,5.5245]
[1755693067045,2.92,181.14,180.98,2.99]
[1755693067744,2.92,181.14,181.0,5.5245]
[1755693068146,2.92,181.14,180.98,2.99]
[1755693068338,2.92,181.14,181.01,8.5141]
[1755693068538,2.92,181.14,181.01,2.99]
[1755693068736,2.92,181.14,181.03,5.5236]
[1755693069142,2.92,181.14,181.01,2.99]
[1755693069335,2.92,181.14,181.05,2.99]
[1755693070040,2.92,181.14,181.05,8.5129]
[1755693070236,2.92,181.14,181.05,2.99]
[1755693070946,2.92,181.14,181.07,5.5222]
[1755693071151,2.92,181.14,181.05,2.99]
[1755693071441,138.4,181.17,181.05,2.99]
[1755693071649,138.4,181.17,180.99,4.48228219]
[1755693071650,138.4,181.17,181.1,2.99]
[1755693072050,138.4,181.17,181.11,5.5212]
[1755693072451,138.4,181.17,181.1,2.99]
[1755693073046,138.4,181.17,181.14,2.99]
[1755693073248,141.32,181.17,181.1,2.99]
[1755693073451,2.92,181.17,181.1,2.99]
[1755693074241,2.92,181.21,181.1,2.99]
[1755693074642,2.92,181.21,181.12,5.5207]
[1755693074848,2.92,181.21,181.13,2.99]
[1755693075651,5.5196,181.17,181.13,2.99]
[1755693075846,5.5196,181.17,181.12,5.5207]
[1755693075847,5.5196,181.17,181.14,2.99]
[1755693076048,2.92,181.21,181.14,2.99]
[1755693076855,2.92,181.21,181.15,2.99]
[1755693077252,5.5197,181.16,181.15,2.99]
[1755693077743,2.92,181.21,181.15,2.99]
[1755693079457,138.38,181.23,181.15,2.99]
[1755693079652,5.5187,181.2,181.15,8.5099]
[1755693079849,5.5187,181.2,181.17,2.99]
[1755693080150,138.38,181.23,181.16,2.99]
[1755693080151,5.5189,181.19,181.16,2.99]
[1755693080350,141.3,181.23,181.16,2.99]
[1755693080852,141.3,181.23,181.18,0.03534165]
[1755693081053,2.92,181.22,181.18,0.03534165]
[1755693081354,2.92,181.21,181.18,0.03534165]
[1755693081556,5.519,181.19,181.18,0.03534165]
[1755693083062,8.439,181.19,181.18,0.03534165]
[1755693083355,5.519,181.19,181.18,0.03534165]
[1755693084968,138.38,181.23,181.19,2.99]
[1755693085158,138.38,181.23,181.2,2.99]
[1755693085558,5.5185,181.21,181.2,2.99]
[1755693086868,141.31,181.23,181.19,3.02]
[1755693088070,2.93,181.22,181.18,0.03534165]
[1755693088269,2.93,181.21,181.18,0.03534165]
[1755693088471,138.38,181.23,181.19,3.02]
[1755693088674,2.93,181.22,181.18,0.03534165]
[1755693088970,2.93,181.22,181.18,3.05534165]
[1755693090066,2.93,181.22,181.18,0.03534165]
[1755693090271,2.93,181.22,181.19,3.02]
[1755693090471,138.38,181.23,181.19,3.02]
[1755693090671,141.31,181.23,181.19,3.02]
[1755693092473,2.93,181.22,181.18,0.03534165]
[1755693092669,138.38,181.23,181.18,0.03534165]
[1755693092870,2.93,181.2,181.18,0.03534165]
[1755693093573,5.5188,181.19,181.18,0.03534165]
[1755693095277,8.4488,181.19,181.18,0.03534165]
[1755693096071,8.4488,181.19,181.18,4.165e-05]
[1755693096278,8.4488,181.19,181.09,120.76074399]
[1755693096279,5.5212,181.11,181.09,120.76074399]
[1755693096574,2.93,181.16,181.1,3.02]
[1755693097279,2.93,181.16,181.09,120.76074399]
[1755693097674,0.03878647,181.15,181.09,120.76074399]
[1755693097880,5.5215,181.1,181.09,120.76074399]
[1755693098071,2.93,181.14,181.07,3.02]
[1755693098679,5.5221,181.08,181.07,3.02]
[1755693099380,0.0418779,181.12,181.04,2.43736135]
[1755693099582,0.0418779,181.12,181.05,3.02]
[1755693099781,5.5216,181.1,181.08,3.02]
[1755693100076,5.56355207,181.1,181.09,3.02]
[1755693100470,0.04195207,181.1,181.09,3.02]
[1755693100675,2.93,181.18,181.09,3.58]
[1755693100977,2.93,181.18,181.07,2.43736135]
[1755693100978,5.521,181.12,181.08,5.56283858]
[1755693101176,2.93,181.18,181.1,3.02]
[1755693101679,5.5211,181.12,181.1,3.02]
[1755693102181,5.5211,181.12,181.07,2.43736135]
[1755693102384,5.5211,181.12,181.11,3.02]
[1755693102985,2.93,181.15,181.09,0.04093494]
[1755693103684,2.93,181.15,181.07,3.02]
[1755693103984,2.93,181.19,181.11,3.02]
[1755693104186,2.93,181.18,181.1,0.03584227]
[1755693104380,2.93,181.18,181.08,3.02]
[1755693104781,2.93,181.18,181.04,2.43736135]
[1755693104782,2.93,181.14,181.12,0.03518484]
[1755693104984,2.93,181.13,181.12,0.03518484]
[1755693105175,8.4506,181.13,181.12,0.03518484]
[1755693105380,5.5206,181.13,181.12,0.03518484]
[1755693105884,8.4506,181.13,181.12,0.03518484]
[1755693106284,5.5206,181.13,181.12,0.03518484]
[1755693106485,5.5206,181.13,181.12,3.05518484]
[1755693106676,5.5206,181.13,181.12,0.03518484]
[1755693106883,8.4506,181.13,181.12,0.03518484]
[1755693108484,5.5206,181.13,181.12,0.03518484]
[1755693109391,5.5206,181.13,181.12,3.05518484]
[1755693110484,5.5204,181.14,181.12,0.03518484]
[1755693110783,5.5204,181.14,181.13,3.02]
[1755693111289,8.4506,181.13,181.12,0.03518484]
[1755693111989,5.5206,181.13,181.12,0.03518484]
[1755693117685,8.4306,181.13,181.12,0.03518484]
[1755693119786,5.5206,181.13,181.12,0.03518484]
[1755693120193,5.5206,181.13,181.04,4.49491728]
[1755693120194,141.25736135,181.13,181.02,4.49491728]
[1755693120394,2.91,181.05,180.95,4.49491728]
[1755693120695,138.26,181.13,180.92,2.43736135]
[1755693120696,2.91,181.02,180.92,4.49491728]
[1755693120994,2.91,180.99,180.91,2.85]
[1755693121587,138.26,181.04,180.82,7.34491728]
[1755693121588,2.91,180.93,180.82,7.34491728]
[1755693121786,2.91,180.93,180.82,6.93227863]
[1755693122004,5.34736135,180.97,180.86,2.85]
[1755693122290,3.80452013,180.96,180.86,2.85]
[1755693122496,2.91,180.95,180.86,2.85]
[1755693123495,2.91,180.95,180.82,2.85]
[1755693123898,6.71452013,180.94,180.81,199.7970655]
[1755693124097,2.91,180.93,180.81,2.85]
[1755693124496,2.91,180.93,180.82,2.85]
[1755693124694,138.3,180.95,180.85,2.85]
[1755693124889,5.5283,180.88,180.85,2.85]
[1755693125099,0.03640125,180.89,180.85,8.3791]
[1755693125295,0.03640125,180.89,180.87,2.85]
[1755693125494,138.3,180.99,180.83,2.85]